[Event "Early-Titled-Tuesday-Blitz-September-05-2023"]
[Site "Chess.com"]
[Date "2023.09.05"]
[Round "4"]
[White "KorolDimitriy75"]
[Black "AleksandraMilovic"]
[Result "1-0"]
[WhiteElo "2329"]
[BlackElo "2127"]
[TimeControl "180+1"]
[EndTime "8:36:58 PDT"]
[Termination "KorolDimitriy75 won on time"]

1. d4 {[%clk 0:03:00.9]} 1... d5 {[%clk 0:02:59.8]} 2. c4 {[%clk 0:03:01.1]}
2... e6 {[%clk 0:02:58.7]} 3. Nc3 {[%clk 0:03:01.5]} 3... Nf6 {[%clk 0:02:58.6]}
4. Bg5 {[%clk 0:03:00.5]} 4... Be7 {[%clk 0:02:57]} 5. cxd5 {[%clk 0:03:00.6]}
5... exd5 {[%clk 0:02:56.4]} 6. e3 {[%clk 0:03:00.7]} 6... O-O {[%clk
0:02:55.8]} 7. Bd3 {[%clk 0:03:00.8]} 7... c6 {[%clk 0:02:54.3]} 8. Qc2 {[%clk
0:03:00.5]} 8... h6 {[%clk 0:02:41.1]} 9. Bh4 {[%clk 0:03:00.1]} 9... Nh5 {[%clk
0:02:40.9]} 10. Bxe7 {[%clk 0:02:56.5]} 10... Qxe7 {[%clk 0:02:41.8]} 11. Nge2
{[%clk 0:02:56.6]} 11... Nd7 {[%clk 0:02:39.6]} 12. h3 {[%clk 0:02:55.1]} 12...
Nhf6 {[%clk 0:02:23]} 13. O-O-O {[%clk 0:02:52.8]} 13... b5 {[%clk 0:01:41]} 14.
Kb1 {[%clk 0:02:51.6]} 14... a5 {[%clk 0:01:39]} 15. g4 {[%clk 0:02:48.2]} 15...
b4 {[%clk 0:01:33.9]} 16. Na4 {[%clk 0:02:47.6]} 16... Ba6 {[%clk 0:01:12.3]}
17. Ng3 {[%clk 0:01:56.2]} 17... Bxd3 {[%clk 0:01:05.5]} 18. Qxd3 {[%clk
0:01:37.5]} 18... Ne4 {[%clk 0:00:52.1]} 19. Nf5 {[%clk 0:01:12.4]} 19... Qe6
{[%clk 0:00:38.2]} 20. Qe2 {[%clk 0:00:54]} 20... Kh7 {[%clk 0:00:19.2]} 21. f3
{[%clk 0:00:45.2]} 21... Nd6 {[%clk 0:00:16.8]} 22. Qd3 {[%clk 0:00:40.9]} 22...
Rae8 {[%clk 0:00:11]} 23. Nxd6+ {[%clk 0:00:37.4]} 23... g6 {[%clk 0:00:10.2]}
24. Nxe8 {[%clk 0:00:36.9]} 1-0

[Event "Early-Titled-Tuesday-Blitz-September-05-2023"]
[Site "Chess.com"]
[Date "2023.09.05"]
[Round "4"]
[White "mamey78"]
[Black "Arteler"]
[Result "1-0"]
[WhiteElo "2665"]
[BlackElo "2392"]
[TimeControl "180+1"]
[EndTime "8:37:01 PDT"]
[Termination "mamey78 won by resignation"]

1. e4 {[%clk 0:03:00.9]} 1... e6 {[%clk 0:02:50.4]} 2. d4 {[%clk 0:03:00.6]}
2... d5 {[%clk 0:02:49.7]} 3. e5 {[%clk 0:03:01]} 3... c5 {[%clk 0:02:50.1]} 4.
c3 {[%clk 0:03:01.4]} 4... Qb6 {[%clk 0:02:48]} 5. Nf3 {[%clk 0:03:01]} 5... Nc6
{[%clk 0:02:45.4]} 6. Bd3 {[%clk 0:03:00.2]} 6... cxd4 {[%clk 0:02:45.6]} 7. O-O
{[%clk 0:03:00.9]} 7... Bd7 {[%clk 0:02:42.6]} 8. Nbd2 {[%clk 0:03:00.8]} 8...
Nge7 {[%clk 0:02:22.9]} 9. Nb3 {[%clk 0:02:58.7]} 9... dxc3 {[%clk 0:02:20.6]}
10. bxc3 {[%clk 0:02:59.6]} 10... Ng6 {[%clk 0:02:20.8]} 11. Re1 {[%clk
0:02:56.7]} 11... Qc7 {[%clk 0:02:17.3]} 12. Qe2 {[%clk 0:02:54.9]} 12... Be7
{[%clk 0:02:14.4]} 13. Nbd4 {[%clk 0:02:53]} 13... a6 {[%clk 0:02:13.5]} 14. Rb1
{[%clk 0:02:38.9]} 14... Na5 {[%clk 0:02:11.3]} 15. h4 {[%clk 0:02:30.3]} 15...
Nxh4 {[%clk 0:02:01.4]} 16. Nxh4 {[%clk 0:02:29]} 16... Bxh4 {[%clk 0:02:02.3]}
17. Qg4 {[%clk 0:02:25.6]} 17... Be7 {[%clk 0:02:03]} 18. Qxg7 {[%clk
0:02:25.8]} 18... O-O-O {[%clk 0:02:03.6]} 19. Qxf7 {[%clk 0:02:26.1]} 19...
Qxc3 {[%clk 0:01:36.1]} 20. Be3 {[%clk 0:02:21]} 20... Qxd3 {[%clk 0:01:13.9]}
21. Qxe7 {[%clk 0:02:19.2]} 21... Nc4 {[%clk 0:00:42.5]} 22. Qc5+ {[%clk
0:01:53.4]} 22... Kb8 {[%clk 0:00:41.7]} 23. Nc6+ {[%clk 0:01:53.4]} 23... Bxc6
{[%clk 0:00:40.3]} 24. Qxc6 {[%clk 0:01:54.3]} 24... Na5 {[%clk 0:00:19.6]} 25.
Qb6 {[%clk 0:01:49.7]} 25... d4 {[%clk 0:00:20.2]} 26. Red1 {[%clk 0:01:43.3]}
26... Qe4 {[%clk 0:00:13.9]} 27. Bxd4 {[%clk 0:01:40]} 27... Nc4 {[%clk
0:00:04.9]} 28. Qa7+ {[%clk 0:01:31.1]} 28... Kc8 {[%clk 0:00:05.6]} 29. Rbc1
{[%clk 0:01:24.7]} 29... b5 {[%clk 0:00:05.9]} 30. Qxa6+ {[%clk 0:01:23.4]}
30... Qb7 {[%clk 0:00:06.6]} 31. Qxe6+ {[%clk 0:01:23.2]} 31... Qd7 {[%clk
0:00:07.4]} 32. Qa6+ {[%clk 0:01:20.8]} 32... Qb7 {[%clk 0:00:07.1]} 33. Qa3
{[%clk 0:01:13.7]} 33... Rhg8 {[%clk 0:00:07.4]} 34. Qh3+ {[%clk 0:01:13.5]}
34... Qd7 {[%clk 0:00:06.7]} 35. e6 {[%clk 0:01:12.8]} 35... Qc6 {[%clk
0:00:04.2]} 36. a4 {[%clk 0:01:09.5]} 36... Rde8 {[%clk 0:00:02.7]} 37. axb5
{[%clk 0:01:09.4]} 37... Qxb5 {[%clk 0:00:03.3]} 38. Be3 {[%clk 0:01:00.9]}
38... Qc6 {[%clk 0:00:02]} 1-0

[Event "Early-Titled-Tuesday-Blitz-September-05-2023"]
[Site "Chess.com"]
[Date "2023.09.05"]
[Round "4"]
[White "Stouuf"]
[Black "Polish_fighter3000"]
[Result "0-1"]
[WhiteElo "2625"]
[BlackElo "3087"]
[TimeControl "180+1"]
[EndTime "8:37:02 PDT"]
[Termination "Polish_fighter3000 won on time"]

1. e4 {[%clk 0:02:59.9]} 1... b6 {[%clk 0:03:00.9]} 2. d4 {[%clk 0:02:59.8]}
2... Bb7 {[%clk 0:03:00.8]} 3. Bd3 {[%clk 0:03:00.1]} 3... d6 {[%clk 0:03:01.1]}
4. Qe2 {[%clk 0:03:00.3]} 4... Nd7 {[%clk 0:03:01.2]} 5. Nf3 {[%clk 0:02:57.1]}
5... e6 {[%clk 0:02:59.9]} 6. O-O {[%clk 0:02:56.6]} 6... g6 {[%clk 0:02:58.7]}
7. Re1 {[%clk 0:02:55]} 7... Bg7 {[%clk 0:02:58.5]} 8. Nbd2 {[%clk 0:02:54.9]}
8... a6 {[%clk 0:02:57.8]} 9. Nf1 {[%clk 0:02:54.6]} 9... Ne7 {[%clk 0:02:57]}
10. Ng3 {[%clk 0:02:54.7]} 10... h6 {[%clk 0:02:56.1]} 11. c3 {[%clk 0:02:55]}
11... O-O {[%clk 0:02:39.8]} 12. Bd2 {[%clk 0:02:45.3]} 12... Kh8 {[%clk
0:02:40.1]} 13. Rad1 {[%clk 0:02:44.7]} 13... Ng8 {[%clk 0:02:38.6]} 14. c4
{[%clk 0:02:36.8]} 14... e5 {[%clk 0:02:24.3]} 15. Bc3 {[%clk 0:02:31]} 15... a5
{[%clk 0:02:22.3]} 16. b3 {[%clk 0:02:24.5]} 16... Qe7 {[%clk 0:02:15.6]} 17. a3
{[%clk 0:02:14.2]} 17... Ngf6 {[%clk 0:02:13]} 18. Bc2 {[%clk 0:02:06]} 18...
Nh7 {[%clk 0:02:10.5]} 19. b4 {[%clk 0:01:56.4]} 19... axb4 {[%clk 0:02:09.7]}
20. axb4 {[%clk 0:01:57.3]} 20... Ra3 {[%clk 0:02:00.2]} 21. Bb2 {[%clk
0:01:51.5]} 21... Ra2 {[%clk 0:02:00.1]} 22. Bb3 {[%clk 0:01:49]} 22... Rxb2
{[%clk 0:01:56.9]} 23. Qxb2 {[%clk 0:01:48.7]} 23... exd4 {[%clk 0:01:57.8]} 24.
Ba4 {[%clk 0:01:33.8]} 24... Ne5 {[%clk 0:01:46.8]} 25. Nxe5 {[%clk 0:01:25.1]}
25... dxe5 {[%clk 0:01:47.7]} 26. c5 {[%clk 0:01:13.4]} 26... h5 {[%clk
0:01:45.5]} 27. c6 {[%clk 0:01:05.6]} 27... Bc8 {[%clk 0:01:43.2]} 28. Bc2
{[%clk 0:00:52.7]} 28... h4 {[%clk 0:01:36.6]} 29. Nf1 {[%clk 0:00:47.2]} 29...
h3 {[%clk 0:01:33.2]} 30. g3 {[%clk 0:00:27.6]} 30... Qf6 {[%clk 0:01:32.9]} 31.
Rd3 {[%clk 0:00:25.8]} 31... Qxc6 {[%clk 0:01:21.3]} 32. Nd2 {[%clk 0:00:24]}
32... Ng5 {[%clk 0:01:17.6]} 33. f3 {[%clk 0:00:19.1]} 33... f5 {[%clk
0:01:12.3]} 34. b5 {[%clk 0:00:19.6]} 34... Qf6 {[%clk 0:01:08.7]} 35. Bd1
{[%clk 0:00:16.2]} 35... Bb7 {[%clk 0:01:06]} 36. Qc2 {[%clk 0:00:04.1]} 36...
fxe4 {[%clk 0:00:57.6]} 37. Nxe4 {[%clk 0:00:03.6]} 37... Nxe4 {[%clk
0:00:57.9]} 38. fxe4 {[%clk 0:00:04.2]} 38... Bxe4 {[%clk 0:00:58.3]} 0-1

[Event "Early-Titled-Tuesday-Blitz-September-05-2023"]
[Site "Chess.com"]
[Date "2023.09.05"]
[Round "4"]
[White "Kaua18"]
[Black "FeketeBarika"]
[Result "0-1"]
[WhiteElo "2493"]
[BlackElo "2383"]
[TimeControl "180+1"]
[EndTime "8:37:03 PDT"]
[Termination "FeketeBarika won on time"]

1. e4 {[%clk 0:02:40.1]} 1... e6 {[%clk 0:02:57.8]} 2. d3 {[%clk 0:02:40]} 2...
d5 {[%clk 0:02:58.7]} 3. Nd2 {[%clk 0:02:40.3]} 3... Nf6 {[%clk 0:02:56.9]} 4.
Ngf3 {[%clk 0:02:39.6]} 4... b6 {[%clk 0:02:57.4]} 5. g3 {[%clk 0:02:40.1]} 5...
dxe4 {[%clk 0:02:57.1]} 6. dxe4 {[%clk 0:02:41]} 6... Bb7 {[%clk 0:02:57.8]} 7.
Bd3 {[%clk 0:02:40.3]} 7... Nbd7 {[%clk 0:02:48.8]} 8. O-O {[%clk 0:02:40.5]}
8... e5 {[%clk 0:02:46.7]} 9. Re1 {[%clk 0:02:39.9]} 9... Bc5 {[%clk 0:02:46.3]}
10. Nc4 {[%clk 0:02:27.8]} 10... O-O {[%clk 0:02:36.1]} 11. Bg5 {[%clk
0:02:15.4]} 11... h6 {[%clk 0:02:30.4]} 12. Be3 {[%clk 0:02:15]} 12... Bxe3
{[%clk 0:02:22.7]} 13. Nxe3 {[%clk 0:02:15.9]} 13... Qe7 {[%clk 0:02:19.2]} 14.
Nf5 {[%clk 0:02:15.7]} 14... Qe6 {[%clk 0:02:13.5]} 15. Qe2 {[%clk 0:02:12.3]}
15... Nc5 {[%clk 0:01:52.5]} 16. Bc4 {[%clk 0:01:34.6]} 16... Qe8 {[%clk
0:01:50.7]} 17. N3h4 {[%clk 0:01:13.5]} 17... Ncxe4 {[%clk 0:01:35.1]} 18. Ng6
{[%clk 0:00:59.9]} 18... Ng5 {[%clk 0:01:08.3]} 19. Red1 {[%clk 0:00:25.4]}
19... Nf3+ {[%clk 0:00:34.8]} 20. Kf1 {[%clk 0:00:20.1]} 20... Nxh2+ {[%clk
0:00:34.5]} 21. Ke1 {[%clk 0:00:19.4]} 21... Nf3+ {[%clk 0:00:34.7]} 22. Kf1
{[%clk 0:00:18.8]} 22... Nh2+ {[%clk 0:00:34.7]} 23. Ke1 {[%clk 0:00:07.9]}
23... Kh7 {[%clk 0:00:32]} 24. Nxf8+ {[%clk 0:00:06.7]} 24... Qxf8 {[%clk
0:00:32.9]} 0-1

[Event "Early-Titled-Tuesday-Blitz-September-05-2023"]
[Site "Chess.com"]
[Date "2023.09.05"]
[Round "4"]
[White "esrosenberg"]
[Black "HanSchut"]
[Result "1-0"]
[WhiteElo "2400"]
[BlackElo "2245"]
[TimeControl "180+1"]
[EndTime "8:37:03 PDT"]
[Termination "esrosenberg won on time"]

1. d4 {[%clk 0:03:00]} 1... Nf6 {[%clk 0:02:58.6]} 2. Nf3 {[%clk 0:03:00.4]}
2... g6 {[%clk 0:02:58.4]} 3. Nc3 {[%clk 0:03:00.3]} 3... d5 {[%clk 0:02:57.6]}
4. Bf4 {[%clk 0:03:00.5]} 4... a6 {[%clk 0:02:55.5]} 5. Qd2 {[%clk 0:02:56.5]}
5... Bf5 {[%clk 0:02:51.2]} 6. O-O-O {[%clk 0:02:54.8]} 6... Ne4 {[%clk
0:02:51.4]} 7. Nxe4 {[%clk 0:02:54.9]} 7... Bxe4 {[%clk 0:02:37.4]} 8. h4 {[%clk
0:02:50.2]} 8... h5 {[%clk 0:02:23.3]} 9. Ng5 {[%clk 0:02:40.2]} 9... Bf5 {[%clk
0:02:16.4]} 10. f3 {[%clk 0:02:40.3]} 10... Bh6 {[%clk 0:01:53.1]} 11. e4 {[%clk
0:02:32.6]} 11... Bxg5 {[%clk 0:01:52.7]} 12. Bxg5 {[%clk 0:02:25.4]} 12... dxe4
{[%clk 0:01:52.6]} 13. fxe4 {[%clk 0:02:26.1]} 13... Bg4 {[%clk 0:01:40.1]} 14.
Re1 {[%clk 0:02:22.6]} 14... c5 {[%clk 0:01:35.9]} 15. d5 {[%clk 0:02:21.6]}
15... Nd7 {[%clk 0:01:27.6]} 16. e5 {[%clk 0:02:21.2]} 16... O-O {[%clk
0:01:21.2]} 17. Bd3 {[%clk 0:01:47.1]} 17... c4 {[%clk 0:01:11.1]} 18. Bxc4
{[%clk 0:01:44.6]} 18... Qc7 {[%clk 0:01:08.3]} 19. e6 {[%clk 0:01:33.7]} 19...
Ne5 {[%clk 0:00:35.1]} 20. exf7+ {[%clk 0:01:31.4]} 20... Rxf7 {[%clk 0:00:34]}
21. Bb3 {[%clk 0:01:31.2]} 21... Nc4 {[%clk 0:00:16.2]} 22. Qd3 {[%clk
0:01:30.5]} 22... b5 {[%clk 0:00:15.8]} 23. Qxg6+ {[%clk 0:01:30.2]} 23... Rg7
{[%clk 0:00:15.7]} 24. Qe4 {[%clk 0:01:22.8]} 24... Rf8 {[%clk 0:00:14.6]} 25.
Bxe7 {[%clk 0:01:16.6]} 25... Re8 {[%clk 0:00:08.3]} 26. d6 {[%clk 0:01:16.6]}
26... Qd7 {[%clk 0:00:06.3]} 27. Bxc4+ {[%clk 0:01:16.6]} 27... bxc4 {[%clk
0:00:06.8]} 28. Qxc4+ {[%clk 0:01:16.9]} 28... Kh7 {[%clk 0:00:07.2]} 29. Qxa6
{[%clk 0:01:10.1]} 29... Bf5 {[%clk 0:00:07.2]} 30. Re2 {[%clk 0:01:07.1]} 30...
Reg8 {[%clk 0:00:06.8]} 31. Bg5 {[%clk 0:00:56.7]} 31... Re8 {[%clk 0:00:04.8]}
32. Rhe1 {[%clk 0:00:53.1]} 32... Rxe2 {[%clk 0:00:04.3]} 33. Qxe2 {[%clk
0:00:48.1]} 33... Bg4 {[%clk 0:00:03.3]} 34. Qe5 {[%clk 0:00:44.4]} 1-0

[Event "Early-Titled-Tuesday-Blitz-September-05-2023"]
[Site "Chess.com"]
[Date "2023.09.05"]
[Round "4"]
[White "Dave_ChessMate"]
[Black "Kazmin_Semyon"]
[Result "1-0"]
[WhiteElo "2736"]
[BlackElo "2536"]
[TimeControl "180+1"]
[EndTime "8:37:08 PDT"]
[Termination "Dave_ChessMate won by resignation"]

1. d4 {[%clk 0:02:56.3]} 1... Nf6 {[%clk 0:02:59.7]} 2. Nc3 {[%clk 0:02:56.4]}
2... d5 {[%clk 0:02:57.9]} 3. Bf4 {[%clk 0:02:56.8]} 3... c5 {[%clk 0:02:51.7]}
4. e4 {[%clk 0:02:56.4]} 4... dxe4 {[%clk 0:02:48.6]} 5. dxc5 {[%clk 0:02:56.3]}
5... Qa5 {[%clk 0:02:31.8]} 6. Bxb8 {[%clk 0:02:54.1]} 6... Rxb8 {[%clk
0:02:28.8]} 7. Bb5+ {[%clk 0:02:54.7]} 7... Bd7 {[%clk 0:02:28.7]} 8. Bxd7+
{[%clk 0:02:54.8]} 8... Nxd7 {[%clk 0:02:29.6]} 9. Qd4 {[%clk 0:02:54.7]} 9...
e5 {[%clk 0:02:23.7]} 10. Qxe4 {[%clk 0:02:54]} 10... Bxc5 {[%clk 0:02:23.7]}
11. Ne2 {[%clk 0:02:54.2]} 11... O-O {[%clk 0:02:21.3]} 12. O-O {[%clk
0:02:53.6]} 12... Nf6 {[%clk 0:02:21.6]} 13. Qf5 {[%clk 0:02:51.5]} 13... Rfe8
{[%clk 0:02:08.8]} 14. Rad1 {[%clk 0:02:49.6]} 14... b5 {[%clk 0:02:03.6]} 15.
Nd5 {[%clk 0:02:48.4]} 15... Nxd5 {[%clk 0:01:52.6]} 16. Rxd5 {[%clk 0:02:49.3]}
16... Bf8 {[%clk 0:01:53]} 17. Nc3 {[%clk 0:02:44.1]} 17... Qb4 {[%clk
0:01:50.2]} 18. Rd7 {[%clk 0:02:42.7]} 18... Qc4 {[%clk 0:01:45.6]} 19. Nd5
{[%clk 0:02:42]} 19... Rbd8 {[%clk 0:01:02.4]} 20. Qxf7+ {[%clk 0:02:41.3]}
20... Kh8 {[%clk 0:01:03.3]} 21. b3 {[%clk 0:02:29.3]} 21... Qc6 {[%clk
0:00:58.7]} 22. Rxd8 {[%clk 0:02:28.8]} 22... Rxd8 {[%clk 0:00:55.9]} 23. Ne3
{[%clk 0:02:29.4]} 23... Bc5 {[%clk 0:00:52.7]} 24. Rd1 {[%clk 0:02:24.3]} 24...
Rf8 {[%clk 0:00:47.4]} 25. Qd5 {[%clk 0:02:21.4]} 25... Qc7 {[%clk 0:00:45.3]}
26. Qd7 {[%clk 0:02:19.7]} 26... Qb6 {[%clk 0:00:41.5]} 27. Qd3 {[%clk
0:02:13.5]} 27... Qf6 {[%clk 0:00:33.4]} 28. Rf1 {[%clk 0:02:12.6]} 28... a6
{[%clk 0:00:32.1]} 29. a4 {[%clk 0:02:10.8]} 29... bxa4 {[%clk 0:00:29.6]} 30.
bxa4 {[%clk 0:02:11.7]} 30... a5 {[%clk 0:00:29]} 31. h3 {[%clk 0:02:00.6]}
31... h6 {[%clk 0:00:25.4]} 32. Qb5 {[%clk 0:02:00]} 32... Bd4 {[%clk
0:00:20.3]} 33. c3 {[%clk 0:01:53.4]} 33... Ba7 {[%clk 0:00:10.2]} 34. Qe2
{[%clk 0:01:51.4]} 34... Qf4 {[%clk 0:00:09]} 35. Ng4 {[%clk 0:01:51.2]} 35...
e4 {[%clk 0:00:08]} 36. Re1 {[%clk 0:01:49.3]} 36... h5 {[%clk 0:00:07.5]} 37.
Ne3 {[%clk 0:01:49.3]} 37... g6 {[%clk 0:00:07.7]} 38. c4 {[%clk 0:01:48]} 38...
Bc5 {[%clk 0:00:07.1]} 39. Qd2 {[%clk 0:01:47]} 39... Kh7 {[%clk 0:00:06.7]} 40.
Rd1 {[%clk 0:01:45.8]} 40... Kh6 {[%clk 0:00:03.9]} 41. Nf1 {[%clk 0:01:43.6]}
41... Qxd2 {[%clk 0:00:02.6]} 42. Rxd2 {[%clk 0:01:43.8]} 42... Kg5 {[%clk
0:00:02.7]} 43. Rd5+ {[%clk 0:01:42.6]} 43... Rf5 {[%clk 0:00:03.4]} 44. Ne3
{[%clk 0:01:41.8]} 44... Bxe3 {[%clk 0:00:02.7]} 45. Rxf5+ {[%clk 0:01:41.9]}
45... Kxf5 {[%clk 0:00:02.7]} 46. fxe3 {[%clk 0:01:42.8]} 46... Ke5 {[%clk
0:00:02.6]} 47. Kf2 {[%clk 0:01:42.8]} 47... Kd6 {[%clk 0:00:03.2]} 48. Kg3
{[%clk 0:01:39.4]} 48... g5 {[%clk 0:00:03.8]} 49. h4 {[%clk 0:01:39.2]} 49...
gxh4+ {[%clk 0:00:04.7]} 50. Kxh4 {[%clk 0:01:39.1]} 50... Kc5 {[%clk
0:00:05.6]} 51. Kxh5 {[%clk 0:01:39.7]} 51... Kxc4 {[%clk 0:00:06.5]} 52. g4
{[%clk 0:01:40.5]} 52... Kd3 {[%clk 0:00:07.4]} 53. g5 {[%clk 0:01:41.3]} 53...
Kxe3 {[%clk 0:00:08.3]} 54. g6 {[%clk 0:01:42.2]} 54... Kf2 {[%clk 0:00:09.2]}
55. g7 {[%clk 0:01:43]} 55... e3 {[%clk 0:00:10.1]} 56. g8=Q {[%clk 0:01:43.5]}
56... e2 {[%clk 0:00:11]} 57. Qf7+ {[%clk 0:01:41.9]} 57... Kg1 {[%clk
0:00:11.6]} 58. Qg6+ {[%clk 0:01:42]} 58... Kf1 {[%clk 0:00:12.1]} 59. Qf5+
{[%clk 0:01:42.6]} 59... Kg1 {[%clk 0:00:12.2]} 60. Qg4+ {[%clk 0:01:43.2]}
60... Kf1 {[%clk 0:00:12.9]} 61. Qf3+ {[%clk 0:01:43.8]} 61... Ke1 {[%clk
0:00:13.7]} 62. Kg4 {[%clk 0:01:44.3]} 62... Kd2 {[%clk 0:00:14.5]} 63. Qd5+
{[%clk 0:01:44.9]} 63... Kc3 {[%clk 0:00:11.6]} 64. Qxa5+ {[%clk 0:01:45.8]} 1-0

[Event "Early-Titled-Tuesday-Blitz-September-05-2023"]
[Site "Chess.com"]
[Date "2023.09.05"]
[Round "4"]
[White "LeoLV10"]
[Black "Andrei_Skvortsov"]
[Result "1-0"]
[WhiteElo "2489"]
[BlackElo "2631"]
[TimeControl "180+1"]
[EndTime "8:37:13 PDT"]
[Termination "LeoLV10 won by resignation"]

1. e4 {[%clk 0:03:00.9]} 1... d5 {[%clk 0:02:56.9]} 2. exd5 {[%clk 0:03:00.3]}
2... Qxd5 {[%clk 0:02:56.5]} 3. Nc3 {[%clk 0:02:57.5]} 3... Qe5+ {[%clk
0:02:56.9]} 4. Be2 {[%clk 0:02:55.4]} 4... Bg4 {[%clk 0:02:57.3]} 5. d4 {[%clk
0:02:53.9]} 5... Bxe2 {[%clk 0:02:57.6]} 6. Ngxe2 {[%clk 0:02:53.6]} 6... Qa5
{[%clk 0:02:54.5]} 7. O-O {[%clk 0:02:53.1]} 7... Nf6 {[%clk 0:02:54.5]} 8. Bd2
{[%clk 0:02:52.1]} 8... Nc6 {[%clk 0:02:53.5]} 9. a3 {[%clk 0:02:49.4]} 9...
O-O-O {[%clk 0:02:47.8]} 10. b3 {[%clk 0:02:38.4]} 10... Nxd4 {[%clk 0:02:40.3]}
11. Nxd4 {[%clk 0:02:35.9]} 11... Rxd4 {[%clk 0:02:41.2]} 12. b4 {[%clk
0:02:36.4]} 12... Qh5 {[%clk 0:02:36.3]} 13. Qe1 {[%clk 0:02:26.4]} 13... a6
{[%clk 0:02:21.8]} 14. b5 {[%clk 0:02:20.3]} 14... axb5 {[%clk 0:02:14.7]} 15.
Rb1 {[%clk 0:02:17.8]} 15... c6 {[%clk 0:02:14.4]} 16. a4 {[%clk 0:02:12.7]}
16... b4 {[%clk 0:02:12.4]} 17. Ne2 {[%clk 0:02:07.5]} 17... Re4 {[%clk
0:02:01.1]} 18. f3 {[%clk 0:02:07]} 18... Rc4 {[%clk 0:01:53.4]} 19. Bxb4 {[%clk
0:02:04]} 19... e6 {[%clk 0:01:49.8]} 20. Bxf8 {[%clk 0:01:56.1]} 20... Rxf8
{[%clk 0:01:50.7]} 21. a5 {[%clk 0:01:55.8]} 21... Qc5+ {[%clk 0:01:45.6]} 22.
Kh1 {[%clk 0:01:54.5]} 22... Rxc2 {[%clk 0:01:45]} 23. a6 {[%clk 0:01:54.9]}
23... b5 {[%clk 0:01:44.8]} 24. Nf4 {[%clk 0:01:50.1]} 24... Rd8 {[%clk
0:01:34.6]} 25. Qa5 {[%clk 0:01:43.5]} 25... Qa7 {[%clk 0:01:35.1]} 26. Rbc1
{[%clk 0:01:09.6]} 26... Rxc1 {[%clk 0:01:34.8]} 27. Rxc1 {[%clk 0:01:09.5]}
27... Kd7 {[%clk 0:01:31.1]} 28. Nd3 {[%clk 0:01:01.4]} 28... Ke8 {[%clk
0:00:46.8]} 29. Ne5 {[%clk 0:00:57.9]} 29... Qe3 {[%clk 0:00:46.7]} 30. Re1
{[%clk 0:00:56.1]} 30... Qc5 {[%clk 0:00:08]} 31. h4 {[%clk 0:00:42.3]} 31...
Ra8 {[%clk 0:00:07.8]} 32. Qc7 {[%clk 0:00:37.9]} 32... Ra7 {[%clk 0:00:04.6]}
33. Qb8+ {[%clk 0:00:35.6]} 33... Ke7 {[%clk 0:00:04.5]} 34. Qxa7+ {[%clk
0:00:36]} 1-0

[Event "Early-Titled-Tuesday-Blitz-September-05-2023"]
[Site "Chess.com"]
[Date "2023.09.05"]
[Round "4"]
[White "Hikaru"]
[Black "FormerProdigy"]
[Result "1/2-1/2"]
[WhiteElo "3265"]
[BlackElo "2887"]
[TimeControl "180+1"]
[EndTime "8:37:18 PDT"]
[Termination "Game drawn by repetition"]

1. h3 {[%clk 0:03:00.9]} 1... e5 {[%clk 0:02:59]} 2. e4 {[%clk 0:03:00.4]} 2...
Nf6 {[%clk 0:02:58.4]} 3. Nc3 {[%clk 0:03:00.4]} 3... Bb4 {[%clk 0:02:57.2]} 4.
a3 {[%clk 0:02:53.2]} 4... Ba5 {[%clk 0:02:55.6]} 5. Bc4 {[%clk 0:02:49.4]} 5...
O-O {[%clk 0:02:41.6]} 6. b4 {[%clk 0:02:45.4]} 6... Bb6 {[%clk 0:02:41.9]} 7.
d3 {[%clk 0:02:46.1]} 7... c6 {[%clk 0:02:41.3]} 8. Nf3 {[%clk 0:02:41.9]} 8...
d5 {[%clk 0:02:40.9]} 9. Bb3 {[%clk 0:02:42.4]} 9... dxe4 {[%clk 0:02:32]} 10.
Nxe4 {[%clk 0:02:40.5]} 10... Nxe4 {[%clk 0:02:31.4]} 11. dxe4 {[%clk
0:02:41.4]} 11... Qxd1+ {[%clk 0:02:27.9]} 12. Kxd1 {[%clk 0:02:42.3]} 12...
Bxf2 {[%clk 0:02:19.1]} 13. Rf1 {[%clk 0:02:07.7]} 13... Bd4 {[%clk 0:02:12.4]}
14. Nxd4 {[%clk 0:02:07.8]} 14... exd4 {[%clk 0:02:13.3]} 15. Bb2 {[%clk
0:02:08.2]} 15... Be6 {[%clk 0:01:50.3]} 16. Bxe6 {[%clk 0:02:08.2]} 16... fxe6
{[%clk 0:01:51.2]} 17. Rxf8+ {[%clk 0:02:08.4]} 17... Kxf8 {[%clk 0:01:52.1]}
18. Bxd4 {[%clk 0:02:08.8]} 18... Nd7 {[%clk 0:01:52.6]} 19. Ke2 {[%clk
0:02:07]} 19... Ke7 {[%clk 0:01:48.7]} 20. a4 {[%clk 0:01:51.1]} 20... e5 {[%clk
0:01:43.9]} 21. Bb2 {[%clk 0:01:41.5]} 21... Ke6 {[%clk 0:01:43.4]} 22. a5
{[%clk 0:01:35.5]} 22... Nf6 {[%clk 0:01:43.7]} 23. Ke3 {[%clk 0:01:34.1]} 23...
Rd8 {[%clk 0:01:38.2]} 24. Rf1 {[%clk 0:01:30.3]} 24... g6 {[%clk 0:01:11.2]}
25. g3 {[%clk 0:01:21.2]} 25... h5 {[%clk 0:01:08.7]} 26. a6 {[%clk 0:01:03.1]}
26... b5 {[%clk 0:01:00.7]} 27. Bc3 {[%clk 0:00:59.4]} 27... Rd7 {[%clk
0:00:44]} 28. Ra1 {[%clk 0:00:54]} 28... Ne8 {[%clk 0:00:43.5]} 29. Be1 {[%clk
0:00:53.7]} 29... Nd6 {[%clk 0:00:43.3]} 30. Bf2 {[%clk 0:00:50.8]} 30... Nc4+
{[%clk 0:00:36.2]} 31. Ke2 {[%clk 0:00:51.1]} 31... Nd6 {[%clk 0:00:19]} 32. Ke3
{[%clk 0:00:46.3]} 32... Nc4+ {[%clk 0:00:19]} 33. Ke2 {[%clk 0:00:26.5]} 33...
Nd6 {[%clk 0:00:19.2]} 34. Ke3 {[%clk 0:00:13.4]} 1/2-1/2